bitfinex-derivatives/quotes_BTCF0:USTF0_20250905
["timestamp","ask_amount","ask_price","bid_price","bid_amount"]
[1757063142401,0.4496179,112580.0,112570.0,1.37573252]
[1757063143003,0.3608,112580.0,112570.0,1.67573252]
[1757063143209,0.3618,112580.0,112570.0,1.67573252]
[1757063143511,0.3618,112580.0,112570.0,1.37573252]
[1757063144206,0.3618,112580.0,112570.0,1.44812822]
[1757063145399,0.3618,112580.0,112570.0,1.44796822]
[1757063147408,0.4506179,112580.0,112570.0,0.63416822]
[1757063147608,0.4506179,112580.0,112570.0,1.44792822]
[1757063148210,0.4506179,112580.0,112570.0,0.63416822]
[1757063148411,0.4506179,112580.0,112570.0,1.44792822]
[1757063150811,0.7006179,112580.0,112570.0,1.2171157]
[1757063151006,0.7006179,112580.0,112570.0,1.2170757]
[1757063151215,0.7006179,112580.0,112570.0,1.44784822]
[1757063153412,0.7006179,112580.0,112570.0,0.63416822]
[1757063153713,0.7006179,112580.0,112570.0,1.44784822]
[1757063154215,0.7006179,112580.0,112570.0,0.63416822]
[1757063154415,0.7006179,112580.0,112570.0,1.44780822]
[1757063155118,0.7006179,112580.0,112570.0,0.63416822]
[1757063155311,0.7139479,112580.0,112570.0,1.44780822]
[1757063155817,0.7357379,112580.0,112570.0,0.63416822]
[1757063156018,0.7357379,112580.0,112570.0,1.44776822]
[1757063156512,0.7139479,112580.0,112570.0,1.44776822]
[1757063156816,0.7006179,112580.0,112570.0,1.44776822]
[1757063158818,0.7006179,112580.0,112570.0,0.63416822]
[1757063159021,0.7006179,112580.0,112570.0,1.44772822]
[1757063161322,0.4506179,112580.0,112570.0,1.44772822]
[1757063161921,0.4857379,112580.0,112570.0,0.63416822]
[1757063162123,0.4857379,112580.0,112570.0,1.44772822]
[1757063162521,0.4639479,112580.0,112570.0,1.44772822]
[1757063163325,0.4506179,112580.0,112570.0,1.44772822]
[1757063164517,0.4857379,112580.0,112570.0,0.4033957]
[1757063164729,0.7357379,112580.0,112570.0,0.331]
[1757063164917,0.7357379,112580.0,112570.0,1.12992]
[1757063165622,0.7357379,112580.0,112570.0,1.36069252]
[1757063166127,0.7357379,112580.0,112570.0,0.56177252]
[1757063166329,0.7357379,112580.0,112570.0,1.37529252]
[1757063166723,0.7357379,112580.0,112570.0,1.14452]
[1757063167028,0.7357379,112580.0,112570.0,1.37529252]
[1757063168223,0.7357379,112580.0,112570.0,0.331]
[1757063168532,0.7357379,112580.0,112570.0,0.56177252]
[1757063168722,0.7357379,112580.0,112570.0,1.37525252]
[1757063169619,0.7357379,112580.0,112570.0,0.56177252]
[1757063169924,0.7357379,112580.0,112570.0,1.14448]
[1757063170520,0.7357379,112580.0,112570.0,0.331]
[1757063171023,0.7357379,112580.0,112570.0,1.14444]
[1757063171230,0.7139479,112580.0,112570.0,1.14444]
[1757063171426,0.7139479,112580.0,112570.0,1.37521252]
[1757063172124,0.7139479,112580.0,112570.0,0.56177252]
[1757063172330,0.7139479,112580.0,112570.0,1.37521252]
[1757063172530,0.7139479,112580.0,112570.0,0.56177252]
[1757063172829,0.7139479,112580.0,112570.0,1.37521252]
[1757063173926,0.7139479,112580.0,112570.0,0.56177252]
[1757063174129,0.7139479,112580.0,112570.0,1.37521252]
[1757063174532,0.3618,112580.0,112570.0,1.37517252]
[1757063175431,0.4506178,112580.0,112570.0,1.37517252]
[1757063175830,0.4864078,112580.0,112570.0,1.37517252]
[1757063176133,0.4864078,112580.0,112570.0,0.56177252]
[1757063176436,0.4864078,112580.0,112570.0,1.37517252]
[1757063176631,0.7364078,112580.0,112570.0,1.1444]
[1757063178331,0.7364078,112580.0,112570.0,0.331]
[1757063178534,0.7364078,112580.0,112570.0,1.1444]
[1757063180038,0.7364078,112580.0,112570.0,0.331]
[1757063180238,0.7364078,112580.0,112570.0,1.1444]
[1757063181035,0.7364078,112580.0,112570.0,1.14436]
[1757063194649,0.96718032,112580.0,112570.0,0.331]
[1757063195152,0.96718032,112580.0,112570.0,1.14432]
[1757063197450,0.96718032,112580.0,112570.0,1.14428]
[1757063199555,0.9961816,112580.0,112570.0,1.14428]
[1757063201062,0.9961816,112580.0,112570.0,0.331]
[1757063202150,1.8094616,112580.0,112570.0,0.331]
[1757063203357,0.9961816,112580.0,112570.0,0.331]
[1757063212662,0.7364078,112580.0,112570.0,0.331]
[1757063212966,0.9961816,112580.0,112570.0,0.331]
[1757063215558,1.8094216,112580.0,112570.0,0.331]
[1757063219571,0.9961816,112580.0,112570.0,0.331]
[1757063219863,1.8093416,112580.0,112570.0,0.331]
[1757063220559,0.9961816,112580.0,112570.0,0.331]
[1757063220867,1.8093416,112580.0,112570.0,0.331]
[1757063221268,1.5593416,112580.0,112570.0,0.331]
[1757063222569,1.2995678,112580.0,112570.0,0.331]
[1757063222763,1.5593416,112580.0,112570.0,0.331]
[1757063223570,0.7461816,112580.0,112570.0,0.331]
[1757063223865,1.5593016,112580.0,112570.0,0.331]
[1757063224168,1.2995278,112580.0,112570.0,0.331]
[1757063224368,1.5593016,112580.0,112570.0,0.331]
[1757063225367,0.7461816,112580.0,112570.0,0.331]
[1757063225666,0.4864078,112580.0,112570.0,0.331]
[1757063225859,0.7461816,112580.0,112570.0,0.331]
[1757063228971,0.4864078,112580.0,112570.0,0.331]
[1757063229274,0.7461816,112580.0,112570.0,0.331]
[1757063246878,0.4864078,112580.0,112570.0,0.331]
[1757063247081,0.7461816,112580.0,112570.0,0.331]
[1757063248179,1.2992878,112580.0,112570.0,0.331]
[1757063248385,1.5590616,112580.0,112570.0,0.331]
[1757063253299,1.2992878,112580.0,112570.0,0.331]
[1757063253500,1.5590616,112580.0,112570.0,0.331]
[1757063253796,1.5864894,112580.0,112570.0,0.331]
[1757063257199,1.5590616,112580.0,112570.0,0.331]
[1757063257402,1.5589816,112580.0,112570.0,0.331]
[1757063257700,1.2992078,112580.0,112570.0,0.331]
[1757063257998,1.5589816,112580.0,112570.0,0.331]
[1757063259104,1.2992078,112580.0,112570.0,0.331]
[1757063259301,1.5589816,112580.0,112570.0,0.331]
[1757063261602,1.53009604,112580.0,112570.0,0.331]
[1757063266713,1.78009604,112580.0,112570.0,0.331]
[1757063266909,1.78009604,112580.0,112570.0,0.001]
[1757063270416,1.5492078,112580.0,112570.0,0.001]
[1757063270611,1.78009604,112580.0,112570.0,0.001]
[1757063270917,1.5492078,112580.0,112570.0,0.001]
[1757063271107,1.78009604,112580.0,112570.0,0.001]
[1757063274118,0.96729604,112580.0,112570.0,0.001]
[1757063274316,1.77989604,112580.0,112570.0,0.001]
[1757063281321,1.52989604,112580.0,112570.0,0.001]
[1757063285030,1.2990078,112580.0,112570.0,0.001]
[1757063285220,1.52989604,112580.0,112570.0,0.001]
[1757063287724,0.1230356,112570.0,112560.0,0.0001]
[1757063287931,0.1230435,112560.0,112550.0,0.0001]
[1757063288229,0.1230435,112560.0,112540.0,0.01827882]
[1757063288230,0.1230514,112550.0,112540.0,0.01996882]
[1757063288528,0.4838514,112550.0,112540.0,0.38986882]
[1757063288922,0.73561318,112550.0,112540.0,0.37159]
[1757063289122,0.73561318,112550.0,112540.0,0.62159]
[1757063289328,0.50172494,112550.0,112540.0,0.62159]
[1757063289520,0.57141854,112550.0,112540.0,0.62159]
[1757063290130,0.5805025,112550.0,112540.0,0.62]
[1757063290527,1.3929025,112550.0,112540.0,0.62]
[1757063290922,1.62479074,112550.0,112540.0,0.62]
[1757063291931,1.62475074,112550.0,112540.0,0.62]
[1757063293331,1.3938625,112550.0,112540.0,0.62159]
[1757063293529,1.62475074,112550.0,112540.0,0.62159]
[1757063294426,0.81239074,112550.0,112540.0,0.62159]
[1757063294634,1.62475074,112550.0,112540.0,0.62159]
[1757063297534,1.62475074,112550.0,112540.0,0.62]
[1757063298634,1.62475074,112550.0,112540.0,0.62159]
[1757063300526,0.81239074,112550.0,112540.0,0.62159]
[1757063300726,1.62471074,112550.0,112540.0,0.62159]
[1757063302635,0.81239074,112550.0,112540.0,0.62159]
[1757063302838,1.62467074,112550.0,112540.0,0.62159]
[1757063305638,0.81239074,112550.0,112540.0,0.62159]
[1757063306336,0.5815025,112550.0,112540.0,0.62159]
[1757063323447,0.84135792,112550.0,112540.0,0.88144542]
[1757063325951,0.84135792,112550.0,112540.0,0.62159]
[1757063326253,0.84135792,112550.0,112540.0,0.88144542]
[1757063327149,0.5815025,112550.0,112540.0,0.88144542]
[1757063327342,0.84135792,112550.0,112540.0,0.88144542]
[1757063329350,0.84135792,112550.0,112540.0,0.62159]
[1757063329648,0.84135792,112550.0,112540.0,0.88144542]
[1757063330055,1.20215792,112550.0,112540.0,0.88144542]
[1757063336664,1.20215792,112550.0,112540.0,0.62159]
[1757063336962,1.20215792,112550.0,112540.0,0.88144542]
[1757063338265,1.20219792,112550.0,112540.0,0.88144542]
[1757063341167,1.20219792,112550.0,112540.0,0.62159]
[1757063341369,1.20219792,112550.0,112540.0,0.63144542]
[1757063341568,1.20219792,112550.0,112540.0,0.37159]
[1757063341772,1.20219792,112550.0,112540.0,0.63144542]
[1757063341966,1.20219792,112550.0,112540.0,0.37159]
[1757063342165,1.20219792,112550.0,112540.0,0.63144542]
[1757063344772,0.9423425,112550.0,112540.0,0.63144542]
[1757063344970,1.20219792,112550.0,112540.0,0.63144542]
[1757063346967,0.9423425,112550.0,112540.0,0.63144542]
[1757063347365,1.20219792,112550.0,112540.0,0.63144542]
[1757063347559,0.9423425,112550.0,112540.0,0.63144542]
[1757063347964,1.20219792,112550.0,112540.0,0.63144542]
[1757063350876,1.20219792,112550.0,112540.0,0.37159]
[1757063351372,1.20219792,112550.0,112540.0,0.63144542]
[1757063353775,1.20219792,112550.0,112540.0,0.37159]
[1757063353975,1.20219792,112550.0,112540.0,0.63144542]
[1757063354274,1.20219792,112550.0,112540.0,0.37159]
[1757063362980,0.9423425,112550.0,112540.0,0.37159]
[1757063363174,1.20219792,112550.0,112540.0,0.37159]
[1757063367887,0.9423425,112550.0,112540.0,0.37159]
[1757063368088,1.20219792,112550.0,112540.0,0.37]
[1757063368386,0.1239999,112540.0,112530.0,0.01831465]
[1757063368575,0.74465532,112540.0,112530.0,0.08821465]
[1757063369486,0.4847999,112540.0,112530.0,0.08821465]
[1757063369688,0.74465532,112540.0,112530.0,0.08821465]
[1757063370486,0.99465532,112540.0,112530.0,0.08821465]
[1757063371080,0.99965532,112540.0,112530.0,0.08821465]
[1757063372983,0.99965532,112540.0,112530.0,0.01821465]
[1757063373191,0.7397999,112540.0,112530.0,0.06980465]
[1757063373488,0.99965532,112540.0,112530.0,0.38980465]
[1757063373794,0.7397999,112540.0,112530.0,0.38980465]
[1757063373983,0.99465532,112540.0,112530.0,0.38980465]
[1757063374190,0.99765532,112540.0,112530.0,0.38980465]
[1757063374390,0.7377999,112540.0,112530.0,0.38980465]
[1757063374589,0.99765532,112540.0,112530.0,0.35980465]
[1757063374789,0.99765532,112540.0,112530.0,0.09980465]
[1757063375091,0.99765532,112540.0,112530.0,0.07980465]
[1757063375291,0.99765532,112540.0,112530.0,0.34980465]
[1757063376593,0.99465532,112540.0,112530.0,0.34980465]
[1757063376793,0.99965532,112540.0,112530.0,0.34980465]
[1757063379893,0.4897999,112540.0,112530.0,0.34980465]
[1757063380195,0.74965532,112540.0,112530.0,0.60966007]
[1757063380393,0.74965532,112540.0,112530.0,0.34980465]
[1757063380893,0.74765532,112540.0,112530.0,0.34980465]
[1757063381094,0.74865532,112540.0,112530.0,0.85966007]
[1757063381300,0.74765532,112540.0,112530.0,0.85966007]
[1757063384397,0.74765532,112540.0,112530.0,0.59980465]
[1757063384598,0.74765532,112540.0,112530.0,0.85966007]
[1757063384997,0.74765532,112540.0,112530.0,0.59980465]
[1757063385199,0.74765532,112540.0,112530.0,0.85966007]
[1757063385498,0.4877999,112540.0,112530.0,0.59980465]
[1757063387106,0.4847999,112540.0,112530.0,0.83081279]
[1757063387687,0.4847999,112540.0,112530.0,0.59980465]
[1757063387884,0.4847999,112540.0,112530.0,1.41100465]
[1757063389104,0.4847999,112540.0,112530.0,0.59980465]
[1757063389290,0.4847999,112540.0,112530.0,1.41100465]
[1757063390398,0.4847999,112540.0,112530.0,0.59980465]
[1757063390701,0.4847999,112540.0,112530.0,1.41096465]
[1757063395308,0.4847999,112540.0,112530.0,1.64197279]
[1757063395502,0.4847999,112540.0,112530.0,1.41096465]
[1757063395692,0.4847999,112540.0,112530.0,1.64197279]
[1757063395901,0.4847999,112540.0,112530.0,1.65102937]
[1757063396507,0.4847999,112540.0,112530.0,1.41096465]
[1757063396709,0.4847999,112540.0,112530.0,1.64197279]
[1757063397508,0.4847999,112540.0,112530.0,1.41096465]
[1757063397713,0.4847999,112540.0,112530.0,1.64197279]
[1757063398212,0.4847999,112540.0,112530.0,1.65068428]
[1757063398807,0.4625699,112540.0,112530.0,1.73548428]
[1757063398997,0.4496499,112540.0,112530.0,1.73548428]
[1757063399911,0.4496499,112540.0,112530.0,1.73648428]
[1757063400312,0.4496499,112540.0,112530.0,1.73748428]
[1757063400613,0.4496499,112540.0,112530.0,1.73648428]
[1757063400813,0.4496499,112540.0,112530.0,1.73748428]
[1757063401313,0.4496499,112540.0,112530.0,1.48748428]
[1757063401608,0.4496499,112540.0,112530.0,0.67632428]
[1757063401803,0.4496499,112540.0,112530.0,1.49076428]
[1757063404505,0.0888499,112540.0,112530.0,1.74076428]
[1757063404814,0.64545064,112550.0,112530.0,1.74076428]
[1757063405113,0.46765494,112550.0,112540.0,0.23259814]
[1757063405413,0.46755494,112550.0,112540.0,0.59259814]
[1757063407111,0.46755494,112550.0,112540.0,1.40683814]
[1757063407313,0.46755494,112550.0,112540.0,0.59259814]
[1757063407610,0.46755494,112550.0,112540.0,1.40667814]
[1757063408616,0.46755494,112550.0,112540.0,0.59259814]
[1757063408916,0.46755494,112550.0,112540.0,1.40667814]
[1757063409104,0.46755494,112550.0,112540.0,1.49147814]
[1757063409300,0.4466814,112550.0,112540.0,1.49147814]
[1757063409818,0.4466814,112550.0,112540.0,1.26047]
[1757063410007,0.4466814,112550.0,112540.0,1.49147814]
[1757063416319,0.0858814,112550.0,112540.0,1.49147814]
[1757063416826,0.0858814,112550.0,112540.0,1.85227814]
[1757063419636,0.0858814,112550.0,112540.0,0.80719]
[1757063419927,0.0858814,112550.0,112540.0,1.85083814]
[1757063420934,0.0858814,112550.0,112540.0,1.76603814]
[1757063423934,0.0858814,112550.0,112540.0,0.72239]
[1757063424137,0.4835014,112550.0,112540.0,1.17795]
[1757063424340,0.4835014,112550.0,112540.0,1.41339814]
[1757063425139,0.4835014,112550.0,112540.0,1.18239]
[1757063425441,0.4835014,112550.0,112540.0,1.41339814]
[1757063426237,0.4835014,112550.0,112540.0,0.59703814]
[1757063426539,0.4604114,112550.0,112540.0,1.41763814]
[1757063426939,0.4604114,112550.0,112540.0,1.50243814]
[1757063427239,0.4835014,112550.0,112540.0,1.50243814]
[1757063428540,0.4604114,112550.0,112540.0,1.50243814]
[1757063438950,0.4604114,112550.0,112540.0,0.68183814]
[1757063439142,0.4604114,112550.0,112540.0,1.50399814]
[1757063441251,0.0996114,112550.0,112540.0,1.50399814]
[1757063441461,0.4604114,112550.0,112540.0,1.50399814]
[1757063442249,0.0996114,112550.0,112540.0,1.50399814]
[1757063442452,0.4466814,112550.0,112540.0,1.50399814]
[1757063445459,0.4466814,112550.0,112540.0,1.53274494]
[1757063449363,0.0858814,112550.0,112540.0,1.53274494]
[1757063449551,0.0858814,112550.0,112540.0,1.44794494]
[1757063449756,0.0888824,112550.0,112540.0,1.44794494]
[1757063455565,0.0888825,112550.0,112540.0,1.80874494]
[1757063455858,0.10967108,112560.0,112540.0,2.85849988]
[1757063456063,0.10957108,112560.0,112550.0,0.88183988]
[1757063456367,0.02063418,112560.0,112550.0,1.26971518]
[1757063456555,0.10946878,112560.0,112550.0,1.26971518]
[1757063457260,0.11146878,112560.0,112550.0,2.09399518]
[1757063457460,0.11146878,112560.0,112550.0,1.27415518]
[1757063457660,0.11146878,112560.0,112550.0,2.09391518]
[1757063458363,0.11246878,112560.0,112550.0,2.09391518]
[1757063460961,0.11150878,112560.0,112550.0,2.09391518]
[1757063461968,0.11150878,112560.0,112550.0,1.27415518]
[1757063462158,0.11150878,112560.0,112550.0,2.09351518]
[1757063462463,0.11150878,112560.0,112550.0,1.27415518]
[1757063462869,0.11150878,112560.0,112550.0,2.09323518]
[1757063468676,0.11150878,112560.0,112550.0,2.09251518]
[1757063469579,0.11150878,112560.0,112550.0,2.09227518]
[1757063470877,0.11150878,112560.0,112550.0,2.09211518]
[1757063471277,0.11150878,112560.0,112550.0,2.17691518]
[1757063471677,0.11150878,112560.0,112550.0,1.35895518]
[1757063472082,0.48594878,112560.0,112550.0,1.81667518]
[1757063472284,0.48594878,112560.0,112550.0,1.55692024]
[1757063472677,0.47230878,112560.0,112550.0,1.55692024]
[1757063473682,0.47230878,112560.0,112550.0,0.4786453]
[1757063473875,0.47230878,112560.0,112550.0,1.55684024]
[1757063476280,0.48550878,112560.0,112550.0,1.55648024]
[1757063476680,0.47230878,112560.0,112550.0,1.55648024]
[1757063480187,0.47230878,112560.0,112550.0,0.73840024]
[1757063480376,0.47230878,112560.0,112550.0,1.55604024]
[1757063482078,0.47130878,112560.0,112550.0,1.55604024]
[1757063482284,0.47130878,112560.0,112550.0,1.55704024]
[1757063482784,0.46930878,112560.0,112550.0,1.55804024]
[1757063489095,0.46930878,112560.0,112550.0,1.2982853]
[1757063489284,0.46930878,112560.0,112550.0,1.55804024]
[1757063490995,0.46930878,112560.0,112550.0,0.74040024]
[1757063491187,0.46930878,112560.0,112550.0,1.55752024]
[1757063491983,0.46930878,112560.0,112550.0,0.74040024]
[1757063492186,0.46930878,112560.0,112550.0,1.55744024]
[1757063493696,0.46930878,112560.0,112550.0,0.74040024]
[1757063493895,0.46930878,112560.0,112550.0,1.55728024]
[1757063495306,0.46930878,112560.0,112550.0,1.2975253]
[1757063495505,0.74363954,112560.0,112550.0,0.3958453]
[1757063495806,0.74363954,112560.0,112550.0,0.65560024]
[1757063496010,0.74363954,112560.0,112550.0,1.47276024]
[1757063496313,0.4838846,112560.0,112550.0,1.47276024]
[1757063497109,0.4838846,112560.0,112550.0,1.2130053]
[1757063497408,0.4838846,112560.0,112550.0,1.47276024]
[1757063497811,0.4838846,112560.0,112550.0,1.2130053]
[1757063498009,0.4838846,112560.0,112550.0,1.47276024]
[1757063501306,0.4838846,112560.0,112550.0,1.2130053]
[1757063501513,0.4838846,112560.0,112550.0,1.47276024]
[1757063507409,0.4838846,112560.0,112550.0,1.44390274]
[1757063509519,0.4838846,112560.0,112550.0,1.2130053]
[1757063509718,0.4838846,112560.0,112550.0,1.44390274]
[1757063513314,0.4838846,112560.0,112550.0,1.2130053]
[1757063513514,0.4838846,112560.0,112550.0,1.44390274]
[1757063516724,0.3608,112560.0,112550.0,1.44390274]
[1757063516929,0.4496352,112560.0,112550.0,1.44390274]
[1757063517123,0.4496352,112560.0,112550.0,1.44202274]
[1757063518329,0.4715752,112560.0,112550.0,0.62674274]
[1757063518529,0.4624652,112560.0,112550.0,1.44198274]
[1757063518724,0.4624652,112560.0,112550.0,1.52678274]
[1757063520029,0.4624652,112560.0,112550.0,1.81988274]
[1757063530331,0.4496352,112560.0,112550.0,1.81988274]
[1757063532337,0.4624652,112560.0,112550.0,1.5889853]
[1757063532540,0.4624652,112560.0,112550.0,1.81988274]
[1757063532737,0.4624652,112560.0,112550.0,1.81848274]
[1757063538041,0.4624652,112560.0,112550.0,1.81832274]
[1757063540140,0.4624652,112560.0,112550.0,1.00464274]
[1757063540539,0.4624652,112560.0,112550.0,1.81804274]
[1757063543246,0.4624652,112560.0,112550.0,1.81776274]
[1757063545048,0.4624652,112560.0,112550.0,1.5868653]
[1757063545245,0.4846452,112560.0,112550.0,1.5020653]
[1757063545445,0.50560729,112560.0,112550.0,1.73304274]
[1757063548048,0.14480729,112560.0,112550.0,1.73304274]
[1757063548242,0.50560729,112560.0,112550.0,1.73304274]
[1757063550350,0.50560729,112560.0,112550.0,1.5021453]
[1757063550647,0.50560729,112560.0,112550.0,1.73304274]
[1757063554048,0.50560729,112560.0,112550.0,1.73296274]
[1757063554454,0.50560729,112560.0,112550.0,1.81776274]
[1757063555454,0.50560729,112560.0,112550.0,1.5868653]
[1757063555753,0.50560729,112560.0,112550.0,1.81776274]
[1757063560857,0.50560729,112560.0,112550.0,1.00464274]
[1757063561058,0.50560729,112560.0,112550.0,1.81776274]
[1757063564073,0.75560729,112560.0,112550.0,1.00464274]
[1757063564369,0.75560729,112560.0,112550.0,1.5868653]
[1757063565371,0.75560729,112560.0,112550.0,1.81776274]
[1757063565972,0.75560729,112560.0,112550.0,1.00464274]
[1757063566273,0.75560729,112560.0,112550.0,1.73296274]
[1757063567473,0.75560729,112560.0,112550.0,1.7618299]
[1757063572475,0.75560729,112560.0,112550.0,1.5020653]
[1757063572674,0.75560729,112560.0,112550.0,1.7618299]
[1757063576885,0.75560729,112560.0,112550.0,1.7620392]
[1757063580581,0.75560729,112560.0,112550.0,0.9489192]
[1757063580782,0.75560729,112560.0,112550.0,1.5021546]
[1757063580981,0.75560729,112560.0,112550.0,1.7619192]
[1757063581178,0.50560729,112560.0,112550.0,1.7619192]
[1757063590493,0.50560729,112560.0,112550.0,1.5021546]
[1757063590694,0.50560729,112560.0,112550.0,1.7619192]
[1757063597701,0.50550729,112560.0,112550.0,1.7619192]
[1757063609107,0.50550729,112560.0,112550.0,1.5021546]
[1757063609313,0.50550729,112560.0,112550.0,1.7619192]
[1757063616808,0.50550729,112560.0,112550.0,1.5021546]
[1757063617006,0.50550729,112560.0,112550.0,1.7619192]
[1757063617715,0.50550729,112560.0,112550.0,1.5021546]
[1757063617915,0.50550729,112560.0,112550.0,1.7619192]
[1757063626723,0.50550729,112560.0,112550.0,0.9489192]
[1757063626924,0.50550729,112560.0,112550.0,1.7613592]
[1757063629423,0.50550729,112560.0,112550.0,1.73247764]
[1757063636432,0.50550729,112560.0,112550.0,1.5015946]
[1757063636633,0.50550729,112560.0,112550.0,1.73247764]
[1757063640238,0.39459209,112560.0,112550.0,1.98247764]
[1757063640939,0.48342859,112560.0,112550.0,1.98247764]
[1757063641242,0.48342859,112560.0,112550.0,1.73247764]
[1757063641939,0.12262859,112560.0,112550.0,1.73247764]
[1757063642143,0.84422859,112560.0,112550.0,1.73247764]
[1757063642440,0.75539209,112560.0,112550.0,1.73247764]
[1757063643244,0.84422859,112560.0,112550.0,1.73247764]
[1757063643540,0.84422859,112560.0,112550.0,1.81727764]
[1757063645041,0.75539209,112560.0,112550.0,1.81727764]
[1757063646541,0.84422859,112560.0,112550.0,1.81727764]
[1757063646739,0.75539209,112560.0,112550.0,1.81727764]
[1757063646939,0.74256209,112560.0,112550.0,1.81727764]
[1757063648641,0.75558209,112560.0,112550.0,1.81727764]
[1757063649044,0.75558209,112560.0,112550.0,1.00483764]
[1757063649237,0.75558209,112560.0,112550.0,0.92003764]
[1757063649438,0.75558209,112560.0,112550.0,1.73211764]
[1757063649635,0.77716209,112560.0,112550.0,1.73211764]
[1757063654647,0.77716209,112560.0,112550.0,0.92003764]
[1757063654845,0.77716209,112560.0,112550.0,1.73207764]
[1757063655240,0.86599909,112560.0,112550.0,1.81687764]
[1757063656250,0.86599909,112560.0,112550.0,1.00483764]
[1757063656442,0.86599909,112560.0,112550.0,1.81683764]
[1757063659152,0.86599909,112560.0,112550.0,1.00483764]
[1757063659452,0.86599909,112560.0,112550.0,1.81679764]
[1757063663353,0.86599909,112560.0,112550.0,1.00483764]
[1757063663653,0.86599909,112560.0,112550.0,1.81671764]
[1757063664851,0.86599909,112560.0,112550.0,0.7739546]
[1757063665053,0.86599909,112560.0,112550.0,1.81667764]
[1757063666750,0.845037,112560.0,112550.0,1.81667764]
[1757063667056,0.845037,112560.0,112550.0,1.73187764]
[1757063667356,0.845037,112560.0,112550.0,1.73183764]
[1757063668359,0.845037,112560.0,112550.0,1.5009546]
[1757063668656,0.845037,112560.0,112550.0,1.73183764]
[1757063669660,0.845037,112560.0,112550.0,1.5009546]
[1757063669961,0.845037,112560.0,112550.0,1.73183764]
[1757063670460,0.845037,112560.0,112550.0,0.92003764]
[1757063670659,0.845037,112560.0,112550.0,1.73179764]
[1757063674562,0.845037,112560.0,112550.0,1.5009146]
[1757063674860,0.845037,112560.0,112550.0,1.73179764]
[1757063675867,0.845037,112560.0,112550.0,0.6891546]
[1757063676058,1.095037,112560.0,112550.0,1.5007946]
[1757063676256,1.32592004,112560.0,112550.0,0.67107]
[1757063676456,1.32592004,112560.0,112550.0,1.48271]
[1757063676963,1.095037,112560.0,112550.0,1.48271]
[1757063677565,1.095037,112560.0,112550.0,0.67107]
[1757063677765,1.095037,112560.0,112550.0,1.48271]
[1757063677965,1.095037,112560.0,112550.0,0.66954]
[1757063678152,1.095037,112560.0,112550.0,1.48118]
[1757063680067,1.095037,112560.0,112550.0,0.66954]
[1757063680256,1.095037,112560.0,112550.0,1.48114]
[1757063684374,1.095037,112560.0,112550.0,0.66954]
[1757063684571,1.095037,112560.0,112550.0,1.4811]
[1757063687682,1.095037,112560.0,112550.0,0.66954]
[1757063688070,1.095037,112560.0,112550.0,1.48106]
[1757063688482,1.095037,112560.0,112550.0,0.66854]
[1757063688683,1.095037,112560.0,112550.0,1.48006]
[1757063689685,1.095037,112560.0,112550.0,1.47906]
[1757063689980,1.097037,112560.0,112550.0,1.47906]
[1757063691486,1.35685411,112560.0,112550.0,1.47906]
[1757063694487,1.35685411,112560.0,112550.0,0.66754]
[1757063694688,1.35685411,112560.0,112550.0,1.47894]
[1757063694989,1.35685411,112560.0,112550.0,0.66754]
[1757063695186,1.35685411,112560.0,112550.0,1.47894]
[1757063696294,1.10685411,112560.0,112550.0,0.66754]
[1757063696591,1.10685411,112560.0,112550.0,1.47894]
[1757063698190,0.847037,112560.0,112550.0,1.47894]
[1757063698378,1.10685411,112560.0,112550.0,1.47894]
[1757063704291,1.10685411,112560.0,112550.0,1.47882]
[1757063704703,1.10685411,112560.0,112550.0,0.66754]
[1757063704893,1.10685411,112560.0,112550.0,1.47882]
[1757063710200,1.10685411,112560.0,112550.0,1.73863711]
[1757063711404,1.10685411,112560.0,112550.0,1.47882]
[1757063711606,0.847037,112560.0,112550.0,1.47882]
[1757063711806,1.10685411,112560.0,112550.0,1.47882]
[1757063718408,1.10685411,112560.0,112550.0,1.73863711]
[1757063718804,1.10685411,112560.0,112550.0,1.47882]
[1757063719009,1.10685411,112560.0,112550.0,1.73863711]
[1757063719816,1.10685411,112560.0,112550.0,1.47882]
[1757063720010,0.847037,112560.0,112550.0,1.98863711]
[1757063720912,0.847037,112560.0,112550.0,1.98963711]
[1757063721102,0.845037,112560.0,112550.0,1.98963711]
[1757063721302,0.845037,112560.0,112550.0,1.72982]
[1757063721502,0.845037,112560.0,112550.0,1.98963711]
[1757063724311,0.845037,112560.0,112550.0,1.72982]
[1757063724515,0.845037,112560.0,112550.0,1.98963711]
[1757063730322,0.845037,112560.0,112550.0,1.72982]
[1757063730511,0.845037,112560.0,112550.0,1.98963711]
[1757063731619,0.845037,112560.0,112550.0,1.72982]
[1757063731822,0.845037,112560.0,112550.0,1.98963711]
[1757063735522,0.845037,112560.0,112550.0,1.47982]
[1757063735720,0.845037,112560.0,112550.0,1.98963711]
[1757063739024,0.845037,112560.0,112550.0,1.17835711]
[1757063739321,0.845037,112560.0,112550.0,1.98911711]
[1757063740227,0.845037,112560.0,112550.0,1.17835711]
[1757063740426,0.845037,112560.0,112550.0,1.98907711]
[1757063744541,0.845037,112560.0,112550.0,1.17835711]
[1757063744741,0.845037,112560.0,112550.0,1.98895711]
[1757063747441,0.845037,112560.0,112550.0,1.17835711]
[1757063747743,0.845037,112560.0,112550.0,1.98891711]
[1757063750547,0.845037,112560.0,112550.0,1.17835711]
[1757063750744,0.845037,112560.0,112550.0,1.98883711]
[1757063751543,0.845037,112560.0,112550.0,1.95991538]
[1757063752249,0.845037,112560.0,112550.0,1.14943538]
[1757063752449,0.845037,112560.0,112550.0,1.95991538]
[1757063754954,0.845037,112560.0,112550.0,1.14943538]
[1757063755251,0.845037,112560.0,112550.0,1.95983538]
[1757063755653,0.845037,112560.0,112550.0,1.14943538]
[1757063755953,0.845037,112560.0,112550.0,1.95983538]
[1757063759458,0.844937,112560.0,112550.0,1.95983538]
[1757063761259,0.844937,112560.0,112550.0,1.70983538]
[1757063761760,0.844937,112560.0,112550.0,1.47894]
[1757063762064,0.844937,112560.0,112550.0,1.70983538]
[1757063764363,0.844937,112560.0,112550.0,0.89958538]
[1757063764561,0.844937,112560.0,112550.0,1.70982538]
[1757063765160,0.844937,112560.0,112550.0,0.89958538]
[1757063765362,0.844937,112560.0,112550.0,1.70982538]
[1757063766158,0.844937,112560.0,112550.0,0.66869]
[1757063766554,0.844937,112560.0,112550.0,1.47889]
[1757063766754,0.844937,112560.0,112550.0,0.66869]
[1757063766955,0.844937,112560.0,112550.0,1.47889]
[1757063767164,0.844937,112560.0,112550.0,0.66869]
[1757063767361,0.844937,112560.0,112550.0,1.47885]
[1757063767663,0.844937,112560.0,112550.0,0.66869]
[1757063767863,0.844937,112560.0,112550.0,1.47885]
[1757063774468,0.844937,112560.0,112550.0,0.66869]